[Event "*** Titled Tuesday 3|2 Blitz"]
[Site "Chess.com"]
[Date "2015.05.05"]
[Round "1"]
[White "MrHenriksson"]
[Black "Cryptochess"]
[Result "0-1"]
[WhiteElo "2017"]
[BlackElo "2378"]
[TimeControl "180+2"]
[EndTime "11:05:24 PDT"]
[Termination "Cryptochess won by resignation"]

1. d4 {[%clk 0:02:59.7]} 1... Nf6 {[%clk 0:03:00.9]} 2. Nf3 {[%clk 0:02:59.9]}
2... e6 {[%clk 0:03:02.5]} 3. g3 {[%clk 0:03:01.3]} 3... b5 {[%clk 0:03:00.6]}
4. Bg2 {[%clk 0:03:02]} 4... Bb7 {[%clk 0:03:02.1]} 5. O-O {[%clk 0:03:03.4]}
5... Be7 {[%clk 0:03:03.3]} 6. c3 {[%clk 0:03:04.5]} 6... O-O {[%clk 0:03:04.8]}
7. a4 {[%clk 0:03:05.4]} 7... a6 {[%clk 0:03:05.4]} 8. axb5 {[%clk 0:03:05.3]}
8... axb5 {[%clk 0:03:07.3]} 9. Rxa8 {[%clk 0:03:05.4]} 9... Bxa8 {[%clk
0:03:09.2]} 10. Qd3 {[%clk 0:03:05.3]} 10... Be4 {[%clk 0:03:07.2]} 11. Qxb5
{[%clk 0:03:06.2]} 11... Bxb1 {[%clk 0:03:08.2]} 12. Bf4 {[%clk 0:03:02.4]}
12... Be4 {[%clk 0:03:06.9]} 13. Ra1 {[%clk 0:03:02.5]} 13... Nc6 {[%clk
0:03:02.1]} 14. Ne5 {[%clk 0:02:55.4]} 14... Bxg2 {[%clk 0:02:56.8]} 15. Kxg2
{[%clk 0:02:54.7]} 15... Nxe5 {[%clk 0:02:57.6]} 16. Bxe5 {[%clk 0:02:53.8]}
16... d6 {[%clk 0:02:58.1]} 17. Bf4 {[%clk 0:02:52.2]} 17... Nd5 {[%clk
0:02:57.4]} 18. Bd2 {[%clk 0:02:46.5]} 18... Qb8 {[%clk 0:02:54.1]} 19. Qd3
{[%clk 0:02:27.7]} 19... Qxb2 {[%clk 0:02:45.4]} 20. Ra7 {[%clk 0:02:25.5]}
20... Qb6 {[%clk 0:02:39.5]} 21. Ra6 {[%clk 0:02:24.6]} 21... Qb7 {[%clk
0:02:40.6]} 22. e4 {[%clk 0:02:24.5]} 22... Nb6 {[%clk 0:02:39.9]} 23. Ra1
{[%clk 0:02:20]} 23... f5 {[%clk 0:02:38.8]} 24. f3 {[%clk 0:02:12.7]} 24...
fxe4 {[%clk 0:02:39.6]} 25. fxe4 {[%clk 0:02:14.6]} 25... e5 {[%clk 0:02:29.1]}
26. Rb1 {[%clk 0:02:04.9]} 26... exd4 {[%clk 0:02:29.3]} 27. cxd4 {[%clk
0:02:05.4]} 27... Bf6 {[%clk 0:02:29.3]} 28. d5 {[%clk 0:01:59.4]} 28... Be5
{[%clk 0:02:18.4]} 29. Be3 {[%clk 0:01:59.1]} 29... Qa7 {[%clk 0:02:12.4]} 30.
Qb3 {[%clk 0:01:53.5]} 30... Qa6 {[%clk 0:02:04.6]} 31. Qc2 {[%clk 0:01:39.3]}
31... Nc4 {[%clk 0:02:00.8]} 32. Bc1 {[%clk 0:01:35]} 32... Bd4 {[%clk
0:01:52.7]} 33. Rb4 {[%clk 0:01:28.8]} 33... Rf2+ {[%clk 0:01:52.7]} 34. Kh3
{[%clk 0:01:28.8]} 34... Rxc2 {[%clk 0:01:52.6]} 0-1

[Event "*** Titled Tuesday 3|2 Blitz"]
[Site "Chess.com"]
[Date "2015.05.05"]
[Round "1"]
[White "Haykos"]
[Black "Imre91"]
[Result "0-1"]
[WhiteElo "2224"]
[BlackElo "2563"]
[TimeControl "180+2"]
[EndTime "11:05:30 PDT"]
[Termination "Imre91 won by resignation"]

1. e4 {[%clk 0:02:58.5]} 1... e6 {[%clk 0:02:56]} 2. d4 {[%clk 0:02:59.1]} 2...
d5 {[%clk 0:02:57]} 3. Nd2 {[%clk 0:03:00.2]} 3... Nc6 {[%clk 0:02:56.9]} 4.
Ngf3 {[%clk 0:03:00.3]} 4... Nf6 {[%clk 0:02:57.6]} 5. Bd3 {[%clk 0:03:01.2]}
5... Nb4 {[%clk 0:02:57.6]} 6. Qe2 {[%clk 0:02:58.2]} 6... Nxd3+ {[%clk
0:02:55.9]} 7. cxd3 {[%clk 0:02:58]} 7... b6 {[%clk 0:02:52.7]} 8. O-O {[%clk
0:02:29.1]} 8... Ba6 {[%clk 0:02:51.3]} 9. e5 {[%clk 0:02:06]} 9... Nd7 {[%clk
0:02:41.4]} 10. Nb3 {[%clk 0:02:07.4]} 10... Be7 {[%clk 0:02:35.2]} 11. a3
{[%clk 0:01:50.7]} 11... c5 {[%clk 0:02:24.3]} 12. dxc5 {[%clk 0:01:49.8]} 12...
bxc5 {[%clk 0:02:24.1]} 13. Bf4 {[%clk 0:01:48.4]} 13... c4 {[%clk 0:02:24]} 14.
Nbd4 {[%clk 0:01:46.4]} 14... cxd3 {[%clk 0:02:24]} 15. Qd2 {[%clk 0:01:47.6]}
15... Rc8 {[%clk 0:02:23.9]} 16. Rac1 {[%clk 0:01:47.9]} 16... Nc5 {[%clk
0:02:20.9]} 17. Rfd1 {[%clk 0:01:27.9]} 17... O-O {[%clk 0:02:17.3]} 18. Qe3
{[%clk 0:01:28.8]} 18... Qd7 {[%clk 0:02:10.1]} 19. Ne1 {[%clk 0:01:24.8]} 19...
Qa4 {[%clk 0:02:04.7]} 20. f3 {[%clk 0:00:49.4]} 20... Nb3 {[%clk 0:01:53.3]}
21. Nxb3 {[%clk 0:00:49.1]} 21... Qxb3 {[%clk 0:01:54.5]} 22. Rxc8 {[%clk
0:00:49.3]} 22... Rxc8 {[%clk 0:01:54.3]} 23. Nxd3 {[%clk 0:00:50.8]} 23...
Qxd1+ {[%clk 0:01:50.8]} 0-1

[Event "*** Titled Tuesday 3|2 Blitz"]
[Site "Chess.com"]
[Date "2015.05.05"]
[Round "1"]
[White "Inopov"]
[Black "destroyer305"]
[Result "1-0"]
[WhiteElo "2475"]
[BlackElo "2142"]
[TimeControl "180+2"]
[EndTime "11:05:36 PDT"]
[Termination "Inopov won on time"]

1. d4 {[%clk 0:02:54.4]} 1... Nf6 {[%clk 0:02:05]} 2. c4 {[%clk 0:02:54.2]} 2...
c5 {[%clk 0:02:03.7]} 3. d5 {[%clk 0:02:55.5]} 3... b5 {[%clk 0:02:04.1]} 4. Qc2
{[%clk 0:02:56.5]} 4... Bb7 {[%clk 0:02:00.7]} 5. e4 {[%clk 0:02:56.5]} 5...
bxc4 {[%clk 0:01:57.3]} 6. Bxc4 {[%clk 0:02:52.9]} 6... d6 {[%clk 0:01:58.2]} 7.
Nf3 {[%clk 0:02:53.6]} 7... g6 {[%clk 0:01:58.3]} 8. O-O {[%clk 0:02:54.5]} 8...
Bg7 {[%clk 0:01:58.9]} 9. Nc3 {[%clk 0:02:53.6]} 9... O-O {[%clk 0:01:59.1]} 10.
h3 {[%clk 0:02:44.3]} 10... Nfd7 {[%clk 0:01:54.5]} 11. Re1 {[%clk 0:02:37.4]}
11... Na6 {[%clk 0:01:53.5]} 12. Bf4 {[%clk 0:02:33]} 12... Nc7 {[%clk
0:01:47.6]} 13. Rad1 {[%clk 0:02:31.5]} 13... Ba6 {[%clk 0:01:45]} 14. Bxa6
{[%clk 0:02:18.7]} 14... Nxa6 {[%clk 0:01:43.8]} 15. e5 {[%clk 0:02:19.9]} 15...
dxe5 {[%clk 0:01:44.6]} 16. Nxe5 {[%clk 0:02:21.8]} 16... Nxe5 {[%clk
0:01:45.3]} 17. Bxe5 {[%clk 0:02:22.8]} 17... Bxe5 {[%clk 0:01:46.1]} 18. Rxe5
{[%clk 0:02:24.5]} 18... Qd6 {[%clk 0:00:53.1]} 19. Qe2 {[%clk 0:02:15.5]} 19...
Rfe8 {[%clk 0:00:45.9]} 20. Re1 {[%clk 0:02:16.5]} 20... Nb4 {[%clk 0:00:41.7]}
21. a3 {[%clk 0:02:11.7]} 21... f6 {[%clk 0:00:31.5]} 22. Re6 {[%clk 0:02:12.4]}
1-0

[Event "*** Titled Tuesday 3|2 Blitz"]
[Site "Chess.com"]
[Date "2015.05.05"]
[Round "1"]
[White "Azzaro25"]
[Black "iFrancisco"]
[Result "1-0"]
[WhiteElo "2143"]
[BlackElo "2285"]
[TimeControl "180+2"]
[EndTime "11:05:50 PDT"]
[Termination "Azzaro25 won by resignation"]

1. b3 {[%clk 0:03:01.9]} 1... e5 {[%clk 0:02:55.7]} 2. Bb2 {[%clk 0:03:02.9]}
2... Nc6 {[%clk 0:02:55.7]} 3. e3 {[%clk 0:03:04.3]} 3... g6 {[%clk 0:02:54.5]}
4. Bb5 {[%clk 0:03:04.3]} 4... Bg7 {[%clk 0:02:55.9]} 5. Ne2 {[%clk 0:03:05.3]}
5... Nge7 {[%clk 0:02:57.1]} 6. O-O {[%clk 0:03:06.4]} 6... O-O {[%clk
0:02:58.2]} 7. f4 {[%clk 0:03:07.2]} 7... exf4 {[%clk 0:02:59.4]} 8. Bxg7 {[%clk
0:03:07.6]} 8... Kxg7 {[%clk 0:03:01.3]} 9. Nxf4 {[%clk 0:03:09]} 9... a6 {[%clk
0:02:54.7]} 10. Bxc6 {[%clk 0:03:09.9]} 10... dxc6 {[%clk 0:02:55.8]} 11. Nc3
{[%clk 0:03:11.6]} 11... Nd5 {[%clk 0:02:56.4]} 12. Ncxd5 {[%clk 0:03:03.3]}
12... cxd5 {[%clk 0:02:58.3]} 13. Qf3 {[%clk 0:03:03.9]} 13... c6 {[%clk
0:02:55.9]} 14. Kh1 {[%clk 0:02:59.4]} 14... f5 {[%clk 0:02:36.7]} 15. Qg3
{[%clk 0:02:58.9]} 15... Kh8 {[%clk 0:02:30.6]} 16. d4 {[%clk 0:02:58]} 16...
Qf6 {[%clk 0:02:30.2]} 17. Nd3 {[%clk 0:02:58.6]} 17... Be6 {[%clk 0:02:24.9]}
18. Ne5 {[%clk 0:02:56.2]} 18... Rae8 {[%clk 0:02:25]} 19. Rf3 {[%clk
0:02:50.4]} 19... Bc8 {[%clk 0:02:24.2]} 20. Raf1 {[%clk 0:02:51.2]} 20... Re6
{[%clk 0:02:18.7]} 21. h4 {[%clk 0:02:45.1]} 21... Rfe8 {[%clk 0:02:18.3]} 22.
Rf4 {[%clk 0:02:43.5]} 22... Rxe5 {[%clk 0:02:00]} 23. dxe5 {[%clk 0:02:43.9]}
23... Qxe5 {[%clk 0:02:01.9]} 24. h5 {[%clk 0:02:32.5]} 24... Qxe3 {[%clk
0:01:54.7]} 25. Qh4 {[%clk 0:02:33]} 25... Qe7 {[%clk 0:01:53.5]} 26. hxg6
{[%clk 0:02:33.7]} 26... Kg8 {[%clk 0:01:31.9]} 27. Qh5 {[%clk 0:02:33.1]} 27...
Rf8 {[%clk 0:01:09.7]} 28. Rh4 {[%clk 0:02:31.3]} 28... Rf6 {[%clk 0:00:41.1]}
29. gxh7+ {[%clk 0:02:19.9]} 29... Kh8 {[%clk 0:00:41.8]} 30. Qg5 {[%clk
0:02:20.6]} 30... Qf8 {[%clk 0:00:32.6]} 31. Re1 {[%clk 0:02:19.1]} 31... Rf7
{[%clk 0:00:29.4]} 32. Qg8+ {[%clk 0:02:17.3]} 1-0

[Event "*** Titled Tuesday 3|2 Blitz"]
[Site "Chess.com"]
[Date "2015.05.05"]
[Round "1"]
[White "Daniel_Fridman"]
[Black "MattyDPerrine"]
[Result "1-0"]
[WhiteElo "2634"]
[BlackElo "2244"]
[TimeControl "180+2"]
[EndTime "11:06:32 PDT"]
[Termination "Daniel_Fridman won by resignation"]

1. d4 {[%clk 0:03:01]} 1... Nf6 {[%clk 0:02:53.6]} 2. c4 {[%clk 0:03:01]} 2...
c5 {[%clk 0:02:54.9]} 3. d5 {[%clk 0:03:00.3]} 3... e6 {[%clk 0:02:56.3]} 4. Nc3
{[%clk 0:03:00.6]} 4... exd5 {[%clk 0:02:57.8]} 5. cxd5 {[%clk 0:03:02.5]} 5...
d6 {[%clk 0:02:59.4]} 6. Nf3 {[%clk 0:03:03]} 6... g6 {[%clk 0:03:01]} 7. Bf4
{[%clk 0:03:03.8]} 7... a6 {[%clk 0:03:01.7]} 8. Nd2 {[%clk 0:02:55.4]} 8... b5
{[%clk 0:03:01.3]} 9. a4 {[%clk 0:02:56.2]} 9... b4 {[%clk 0:03:02.6]} 10. Nce4
{[%clk 0:02:57.1]} 10... Nxe4 {[%clk 0:02:11.7]} 11. Nxe4 {[%clk 0:02:57.6]}
11... Be7 {[%clk 0:02:05.4]} 12. e3 {[%clk 0:02:54]} 12... f5 {[%clk 0:02:05.2]}
13. Nd2 {[%clk 0:02:53]} 13... O-O {[%clk 0:02:04]} 14. Bg3 {[%clk 0:02:47.4]}
14... Nd7 {[%clk 0:02:04]} 15. Nc4 {[%clk 0:02:47.8]} 15... Nf6 {[%clk
0:02:02.9]} 16. Be2 {[%clk 0:02:45.4]} 16... Bb7 {[%clk 0:02:01.4]} 17. Bf3
{[%clk 0:02:45.9]} 17... g5 {[%clk 0:02:02.6]} 18. h3 {[%clk 0:02:33.2]} 18...
g4 {[%clk 0:01:59.9]} 19. hxg4 {[%clk 0:02:34]} 19... fxg4 {[%clk 0:02:01.8]}
20. Bxg4 {[%clk 0:02:35]} 20... Bxd5 {[%clk 0:02:03.4]} 21. Rc1 {[%clk
0:02:30.8]} 21... Qc7 {[%clk 0:01:10.2]} 22. Rh6 {[%clk 0:02:21.1]} 22... Bxc4
{[%clk 0:00:32.1]} 23. Rxc4 {[%clk 0:02:20.7]} 23... Kg7 {[%clk 0:00:33.7]} 24.
Rh3 {[%clk 0:02:15.9]} 24... Qc6 {[%clk 0:00:23.7]} 25. Bf3 {[%clk 0:02:16.2]}
25... d5 {[%clk 0:00:25.1]} 26. Rch4 {[%clk 0:02:14.2]} 26... Qe6 {[%clk
0:00:21.6]} 27. Bxd5 {[%clk 0:01:54]} 27... Nxd5 {[%clk 0:00:11]} 28. Rxh7+
{[%clk 0:01:54.6]} 28... Kg8 {[%clk 0:00:12.6]} 29. Rh8+ {[%clk 0:01:52.2]}
29... Kf7 {[%clk 0:00:13.8]} 30. Qh5+ {[%clk 0:01:53.2]} 30... Kf6 {[%clk
0:00:03.5]} 31. Rh6+ {[%clk 0:01:52.4]} 31... Kg7 {[%clk 0:00:05]} 32. Rxe6
{[%clk 0:01:52.3]} 1-0

[Event "*** Titled Tuesday 3|2 Blitz"]
[Site "Chess.com"]
[Date "2015.05.05"]
[Round "1"]
[White "megarompa"]
[Black "DanielRensch"]
[Result "1-0"]
[WhiteElo "2669"]
[BlackElo "2268"]
[TimeControl "180+2"]
[EndTime "11:06:44 PDT"]
[Termination "megarompa won by resignation"]

1. d4 {[%clk 0:03:00]} 1... Nf6 {[%clk 0:03:00.3]} 2. Bg5 {[%clk 0:02:57.8]}
2... e6 {[%clk 0:02:59.1]} 3. Nf3 {[%clk 0:02:57.3]} 3... c5 {[%clk 0:02:58.7]}
4. e3 {[%clk 0:02:57.8]} 4... b6 {[%clk 0:02:59.3]} 5. c4 {[%clk 0:02:55.7]}
5... cxd4 {[%clk 0:02:56.5]} 6. exd4 {[%clk 0:02:54]} 6... Be7 {[%clk 0:02:55]}
7. Nc3 {[%clk 0:02:55.1]} 7... O-O {[%clk 0:02:37.8]} 8. Bd3 {[%clk 0:02:54.1]}
8... d5 {[%clk 0:02:37.9]} 9. O-O {[%clk 0:02:51.6]} 9... dxc4 {[%clk
0:02:37.6]} 10. Bxc4 {[%clk 0:02:53.1]} 10... Bb7 {[%clk 0:02:38.9]} 11. Ne5
{[%clk 0:02:49.3]} 11... h6 {[%clk 0:02:39]} 12. Be3 {[%clk 0:02:40.4]} 12...
Nc6 {[%clk 0:02:39.1]} 13. a3 {[%clk 0:02:26]} 13... Rc8 {[%clk 0:02:38]} 14.
Ba2 {[%clk 0:02:21.2]} 14... Nxe5 {[%clk 0:02:21.2]} 15. dxe5 {[%clk 0:02:23.1]}
15... Ne4 {[%clk 0:02:18.9]} 16. Nxe4 {[%clk 0:02:20.6]} 16... Bxe4 {[%clk
0:02:17.4]} 17. Qa4 {[%clk 0:02:18.8]} 17... Bc2 {[%clk 0:01:14.6]} 18. Qxa7
{[%clk 0:02:16]} 18... Bc5 {[%clk 0:01:15]} 19. Bxc5 {[%clk 0:02:03.3]} 19...
Rxc5 {[%clk 0:01:16.9]} 20. Rfe1 {[%clk 0:01:44.2]} 20... Re8 {[%clk 0:01:00.8]}
21. b4 {[%clk 0:01:38.6]} 21... Rc3 {[%clk 0:00:59]} 22. Bb1 {[%clk 0:01:26.5]}
22... Bb3 {[%clk 0:00:52.7]} 23. Be4 {[%clk 0:01:23.2]} 23... Re7 {[%clk
0:00:44.3]} 24. Qa6 {[%clk 0:01:15]} 24... Bc4 {[%clk 0:00:41.8]} 25. Qa4 {[%clk
0:01:09.7]} 25... Bb3 {[%clk 0:00:39.2]} 26. Qa6 {[%clk 0:01:10.7]} 26... Qd4
{[%clk 0:00:37.7]} 27. Qa8+ {[%clk 0:01:06.6]} 1-0

[Event "*** Titled Tuesday 3|2 Blitz"]
[Site "Chess.com"]
[Date "2015.05.05"]
[Round "1"]
[White "David_Klein"]
[Black "DanielNaroditsky"]
[Result "0-1"]
[WhiteElo "2230"]
[BlackElo "2572"]
[TimeControl "180+2"]
[EndTime "11:06:46 PDT"]
[Termination "DanielNaroditsky won by resignation"]

1. e4 {[%clk 0:02:58.8]} 1... e5 {[%clk 0:03:00]} 2. Nf3 {[%clk 0:02:58.5]} 2...
Nc6 {[%clk 0:03:01.6]} 3. Nc3 {[%clk 0:02:59.3]} 3... Nf6 {[%clk 0:03:02.2]} 4.
d4 {[%clk 0:02:58.2]} 4... exd4 {[%clk 0:03:03.4]} 5. Nxd4 {[%clk 0:02:59.8]}
5... Bc5 {[%clk 0:03:04.8]} 6. Be3 {[%clk 0:03:00.3]} 6... Bb6 {[%clk
0:03:03.4]} 7. Qd2 {[%clk 0:02:57.5]} 7... O-O {[%clk 0:03:00.6]} 8. O-O-O
{[%clk 0:02:57.7]} 8... Re8 {[%clk 0:03:01.8]} 9. f3 {[%clk 0:02:55.6]} 9... d5
{[%clk 0:02:54.6]} 10. Bb5 {[%clk 0:02:55.9]} 10... Qd6 {[%clk 0:02:24.3]} 11.
Bxc6 {[%clk 0:02:41.2]} 11... bxc6 {[%clk 0:02:24.5]} 12. Nb3 {[%clk 0:02:36.6]}
12... dxe4 {[%clk 0:02:17.5]} 13. Bxb6 {[%clk 0:01:47.2]} 13... Qxd2+ {[%clk
0:02:15.7]} 14. Nxd2 {[%clk 0:01:44.1]} 14... axb6 {[%clk 0:02:16.2]} 15. Ndxe4
{[%clk 0:01:41.9]} 15... Nxe4 {[%clk 0:02:16.9]} 16. fxe4 {[%clk 0:01:43.5]}
16... Be6 {[%clk 0:02:18]} 17. a3 {[%clk 0:01:44.4]} 17... f6 {[%clk 0:02:18.3]}
18. Rd3 {[%clk 0:01:44.5]} 18... Kf7 {[%clk 0:02:17.6]} 19. Rhd1 {[%clk
0:01:45.6]} 19... Ke7 {[%clk 0:02:19]} 20. Kd2 {[%clk 0:01:46]} 20... Bc4 {[%clk
0:02:17.2]} 21. Rd4 {[%clk 0:01:44.4]} 21... b5 {[%clk 0:02:06]} 22. Ke3 {[%clk
0:01:45]} 22... Be6 {[%clk 0:02:05.5]} 23. h3 {[%clk 0:01:39.5]} 23... c5 {[%clk
0:02:00.1]} 24. Nd5+ {[%clk 0:01:34.1]} 24... Kf7 {[%clk 0:02:01.4]} 25. R4d2
{[%clk 0:01:34.7]} 25... Bf5 {[%clk 0:01:51.5]} 26. Nxc7 {[%clk 0:01:32.3]}
26... Rxe4+ {[%clk 0:01:51.8]} 27. Kf3 {[%clk 0:01:31.9]} 27... Rb8 {[%clk
0:01:52]} 28. g4 {[%clk 0:01:22.8]} 28... Re7 {[%clk 0:01:44.1]} 29. gxf5 {[%clk
0:01:18.6]} 29... Rxc7 {[%clk 0:01:44.7]} 30. Rd7+ {[%clk 0:01:20.1]} 30... Rxd7
{[%clk 0:01:46.3]} 31. Rxd7+ {[%clk 0:01:21.9]} 31... Kf8 {[%clk 0:01:48]} 32.
Rc7 {[%clk 0:01:21.6]} 32... c4 {[%clk 0:01:33.4]} 33. c3 {[%clk 0:01:19.4]}
33... g6 {[%clk 0:01:24.5]} 34. Rxh7 {[%clk 0:01:18.7]} 34... Kg8 {[%clk
0:01:24.6]} 35. fxg6 {[%clk 0:01:19.3]} 35... Rd8 {[%clk 0:01:26.2]} 36. Rb7
{[%clk 0:01:18.1]} 36... Rd5 {[%clk 0:01:27.7]} 37. Kf4 {[%clk 0:01:16.7]} 37...
Rh5 {[%clk 0:01:27.8]} 38. h4 {[%clk 0:01:15.1]} 38... Rxh4+ {[%clk 0:01:28.4]}
39. Kf5 {[%clk 0:01:16.4]} 39... Rh2 {[%clk 0:01:29.1]} 40. Rxb5 {[%clk
0:01:10.2]} 40... Rh5+ {[%clk 0:01:29.9]} 0-1

[Event "*** Titled Tuesday 3|2 Blitz"]
[Site "Chess.com"]
[Date "2015.05.05"]
[Round "1"]
[White "NguyenDucHoa"]
[Black "esr44"]
[Result "1-0"]
[WhiteElo "2389"]
[BlackElo "2030"]
[TimeControl "180+2"]
[EndTime "11:07:05 PDT"]
[Termination "NguyenDucHoa won on time"]

1. d4 {[%clk 0:02:59.8]} 1... d5 {[%clk 0:03:00.6]} 2. c4 {[%clk 0:03:00.2]}
2... e6 {[%clk 0:03:01.8]} 3. Nf3 {[%clk 0:03:01]} 3... Nf6 {[%clk 0:03:02.5]}
4. g3 {[%clk 0:03:02]} 4... Be7 {[%clk 0:03:03.4]} 5. Bg2 {[%clk 0:03:03.3]}
5... O-O {[%clk 0:03:04.7]} 6. O-O {[%clk 0:03:04.2]} 6... dxc4 {[%clk
0:03:06.3]} 7. Qc2 {[%clk 0:03:03.2]} 7... a6 {[%clk 0:03:07.6]} 8. a4 {[%clk
0:03:04.1]} 8... Bd7 {[%clk 0:03:08.3]} 9. Rd1 {[%clk 0:03:02.4]} 9... Bc6
{[%clk 0:03:01.2]} 10. Nc3 {[%clk 0:03:03.6]} 10... Nbd7 {[%clk 0:02:27]} 11. e4
{[%clk 0:02:59.7]} 11... b5 {[%clk 0:02:23.6]} 12. d5 {[%clk 0:02:45.2]} 12...
Bb7 {[%clk 0:02:07.3]} 13. dxe6 {[%clk 0:02:34.9]} 13... fxe6 {[%clk 0:02:08]}
14. Nd4 {[%clk 0:02:35.3]} 14... Nc5 {[%clk 0:01:36.5]} 15. Nxe6 {[%clk
0:02:25.4]} 15... Qe8 {[%clk 0:01:16.1]} 16. Nxf8 {[%clk 0:02:18]} 16... Bxf8
{[%clk 0:01:09]} 17. axb5 {[%clk 0:02:18.5]} 17... axb5 {[%clk 0:00:56.3]} 18.
Rxa8 {[%clk 0:02:18.3]} 18... Bxa8 {[%clk 0:00:58.2]} 19. Nd5 {[%clk 0:02:00.8]}
19... Nxd5 {[%clk 0:00:51.8]} 20. exd5 {[%clk 0:02:01.7]} 20... Nd3 {[%clk
0:00:53]} 21. Be3 {[%clk 0:01:58.7]} 21... Qh5 {[%clk 0:00:44.6]} 22. Rxd3
{[%clk 0:01:30.4]} 22... cxd3 {[%clk 0:00:42.2]} 23. Qxd3 {[%clk 0:01:32.3]}
23... b4 {[%clk 0:00:35.1]} 24. d6 {[%clk 0:01:26.9]} 24... Bxg2 {[%clk
0:00:32.3]} 25. d7 {[%clk 0:01:27.2]} 25... Be4 {[%clk 0:00:11.5]} 26. Qd4
{[%clk 0:01:11.9]} 1-0

[Event "*** Titled Tuesday 3|2 Blitz"]
[Site "Chess.com"]
[Date "2015.05.05"]
[Round "1"]
[White "GMBenjaminBok"]
[Black "AlmirDzhumaev"]
[Result "1-0"]
[WhiteElo "2433"]
[BlackElo "2098"]
[TimeControl "180+2"]
[EndTime "11:07:26 PDT"]
[Termination "GMBenjaminBok won by resignation"]

1. e4 {[%clk 0:03:01.9]} 1... e5 {[%clk 0:03:00.1]} 2. Nf3 {[%clk 0:03:02.2]}
2... Nc6 {[%clk 0:03:00.1]} 3. Bb5 {[%clk 0:03:03.3]} 3... a6 {[%clk 0:03:00.3]}
4. Ba4 {[%clk 0:03:04.2]} 4... Nf6 {[%clk 0:03:01.6]} 5. O-O {[%clk 0:03:04.7]}
5... Be7 {[%clk 0:03:02.7]} 6. Re1 {[%clk 0:03:04.5]} 6... b5 {[%clk 0:03:04]}
7. Bb3 {[%clk 0:03:05.2]} 7... O-O {[%clk 0:03:05.9]} 8. c3 {[%clk 0:02:56.7]}
8... d5 {[%clk 0:03:06.7]} 9. exd5 {[%clk 0:02:57.6]} 9... Nxd5 {[%clk
0:03:08.6]} 10. Nxe5 {[%clk 0:02:58.8]} 10... Nxe5 {[%clk 0:03:10.5]} 11. Rxe5
{[%clk 0:03:00.3]} 11... c6 {[%clk 0:03:12]} 12. d3 {[%clk 0:02:57.3]} 12... Bd6
{[%clk 0:03:12.7]} 13. Re1 {[%clk 0:02:57.8]} 13... Qh4 {[%clk 0:03:13.3]} 14.
g3 {[%clk 0:02:57.9]} 14... Qh3 {[%clk 0:03:13.3]} 15. Re4 {[%clk 0:02:59.1]}
15... h6 {[%clk 0:02:54.8]} 16. Nd2 {[%clk 0:02:07.6]} 16... Nf6 {[%clk
0:02:36.5]} 17. Rh4 {[%clk 0:01:50]} 17... Qf5 {[%clk 0:02:36.8]} 18. Ne4 {[%clk
0:01:51.4]} 18... Bc7 {[%clk 0:02:32.7]} 19. Bf4 {[%clk 0:01:20.4]} 19... Bb6
{[%clk 0:02:24.5]} 20. Nd6 {[%clk 0:00:59.2]} 20... Qc5 {[%clk 0:02:24.8]} 21.
d4 {[%clk 0:00:56.5]} 21... Bg4 {[%clk 0:02:07.7]} 22. dxc5 {[%clk 0:00:46.4]}
22... Bxd1 {[%clk 0:02:07.9]} 23. cxb6 {[%clk 0:00:40.6]} 23... Bf3 {[%clk
0:02:00.8]} 24. b7 {[%clk 0:00:32.9]} 24... Rab8 {[%clk 0:01:54.7]} 25. Nxf7
{[%clk 0:00:29.9]} 25... Kh7 {[%clk 0:01:51.9]} 26. Bxb8 {[%clk 0:00:25]} 26...
Rxb8 {[%clk 0:01:52.1]} 27. Ng5+ {[%clk 0:00:25.3]} 27... Kg6 {[%clk 0:01:50.5]}
28. Nxf3 {[%clk 0:00:26]} 28... Rxb7 {[%clk 0:01:51.6]} 29. Re1 {[%clk
0:00:25.9]} 29... c5 {[%clk 0:01:52.6]} 30. Ne5+ {[%clk 0:00:26.3]} 30... Kh7
{[%clk 0:01:53.3]} 31. Rf4 {[%clk 0:00:26.2]} 31... c4 {[%clk 0:01:54.2]} 32.
Bc2+ {[%clk 0:00:26.5]} 32... Kg8 {[%clk 0:01:54.1]} 33. b3 {[%clk 0:00:27.7]}
33... Nd5 {[%clk 0:01:52.6]} 34. Rd4 {[%clk 0:00:27.3]} 34... cxb3 {[%clk
0:01:48.8]} 35. Bxb3 {[%clk 0:00:27.5]} 35... Rb8 {[%clk 0:01:42.2]} 36. Bxd5+
{[%clk 0:00:28]} 36... Kh7 {[%clk 0:01:41.3]} 37. Be4+ {[%clk 0:00:28.8]} 37...
Kg8 {[%clk 0:01:41.3]} 38. Red1 {[%clk 0:00:30]} 38... g5 {[%clk 0:01:42]} 39.
Rd8+ {[%clk 0:00:30.2]} 39... Rxd8 {[%clk 0:01:43.9]} 40. Rxd8+ {[%clk 0:00:31]}
40... Kg7 {[%clk 0:01:45.4]} 41. f4 {[%clk 0:00:31.8]} 41... Kf6 {[%clk
0:01:47.3]} 42. Rd6+ {[%clk 0:00:31.3]} 42... Ke7 {[%clk 0:01:48.1]} 43. Rxh6
{[%clk 0:00:31.7]} 43... gxf4 {[%clk 0:01:49.3]} 44. gxf4 {[%clk 0:00:32.9]} 1-0

[Event "*** Titled Tuesday 3|2 Blitz"]
[Site "Chess.com"]
[Date "2015.05.05"]
[Round "1"]
[White "MFBerna"]
[Black "dabee"]
[Result "0-1"]
[WhiteElo "1960"]
[BlackElo "2360"]
[TimeControl "180+2"]
[EndTime "11:07:26 PDT"]
[Termination "dabee won on time"]

1. e4 {[%clk 0:02:58.1]} 1... e6 {[%clk 0:02:59.8]} 2. d4 {[%clk 0:02:58.2]}
2... d5 {[%clk 0:03:00.8]} 3. Nd2 {[%clk 0:02:57.9]} 3... dxe4 {[%clk
0:03:01.1]} 4. Nxe4 {[%clk 0:02:56.8]} 4... Bd7 {[%clk 0:03:02.2]} 5. Nf3 {[%clk
0:02:57]} 5... Bc6 {[%clk 0:03:03.2]} 6. Bd3 {[%clk 0:02:58]} 6... Nd7 {[%clk
0:03:03.7]} 7. Qe2 {[%clk 0:02:58.9]} 7... Ngf6 {[%clk 0:03:04.2]} 8. O-O {[%clk
0:02:59.4]} 8... Be7 {[%clk 0:03:02.5]} 9. Bf4 {[%clk 0:03:00.2]} 9... Nxe4
{[%clk 0:02:59.7]} 10. Bxe4 {[%clk 0:03:01.2]} 10... Bxe4 {[%clk 0:03:01.2]} 11.
Qxe4 {[%clk 0:03:02.5]} 11... c6 {[%clk 0:03:02.3]} 12. Rad1 {[%clk 0:03:01.8]}
12... O-O {[%clk 0:03:02.7]} 13. c4 {[%clk 0:03:00.6]} 13... Re8 {[%clk
0:03:00.8]} 14. Rd3 {[%clk 0:02:44.7]} 14... Bf6 {[%clk 0:02:55.4]} 15. Rfd1
{[%clk 0:02:43.9]} 15... Qa5 {[%clk 0:02:55]} 16. a3 {[%clk 0:02:40.3]} 16... h6
{[%clk 0:02:47.7]} 17. h3 {[%clk 0:02:11.6]} 17... Qa4 {[%clk 0:02:34.3]} 18. b3
{[%clk 0:01:51.4]} 18... Qxa3 {[%clk 0:02:31.9]} 19. Nh2 {[%clk 0:01:46.8]}
19... e5 {[%clk 0:02:25.6]} 20. Bc1 {[%clk 0:01:25.5]} 20... Qe7 {[%clk
0:02:22.5]} 21. Ng4 {[%clk 0:01:11.4]} 21... exd4 {[%clk 0:02:20.9]} 22. Nxf6+
{[%clk 0:01:03.6]} 22... Nxf6 {[%clk 0:02:07.9]} 23. Qxd4 {[%clk 0:01:01.2]}
23... Qe2 {[%clk 0:02:00.5]} 24. Bxh6 {[%clk 0:00:45.3]} 24... Re4 {[%clk
0:01:45.2]} 25. Qc3 {[%clk 0:00:35.1]} 25... Re6 {[%clk 0:01:37.9]} 26. Bf4
{[%clk 0:00:16.5]} 26... Ne4 {[%clk 0:01:27.2]} 27. Qd4 {[%clk 0:00:10.7]} 27...
Rf6 {[%clk 0:01:17]} 28. Be3 {[%clk 0:00:08.6]} 28... Re8 {[%clk 0:01:14.8]} 29.
Qd7 {[%clk 0:00:03.3]} 29... Ree6 {[%clk 0:01:14.2]} 0-1